[Event "January 2 Late 2024"]
[Site "https://www.chess.com"]
[Date "2024.01.02"]
[Round "11"]
[White "Bortnyk, Olexandr"]
[Black "Msellek, Ilyass"]
[Result "0-1"]
[Board "26"]
[TimeControl "180+1"]
[WhiteFideId "14120828"]
[BlackFideId "675938"]
[WhiteElo "3003"]
[BlackElo "2750"]
[WhiteTeam "UKR"]
[BlackTeam "MAR"]
[WhiteClock "0:00:53"]
[BlackClock "0:01:22"]

1. e4 {[%clk 0:03:00]}  Nf6 {[%clk 0:02:48]} 2. Ke2 {[%clk 0:03:01]}  Ng8 {[%clk 0:02:47]} 3. Ke1 {[%clk 0:03:00]}  Nc6 {[%clk 0:02:47]} 4. d4 {[%clk 0:03:01]}  Nb8 {[%clk 0:02:48]} 5. c4 {[%clk 0:03:01]}  c5 {[%clk 0:02:48]} 6. d5 {[%clk 0:03:01]}  d6 {[%clk 0:02:48]} 7. Nc3 {[%clk 0:03:01]}  g6 {[%clk 0:02:49]} 8. f4 {[%clk 0:03:02]}  Bg7 {[%clk 0:02:49]} 9. Nf3 {[%clk 0:03:03]}  Nf6 {[%clk 0:02:50]} 10. Bd3 {[%clk 0:03:02]}  O-O {[%clk 0:02:50]} 11. e5 {[%clk 0:03:03]}  dxe5 {[%clk 0:02:50]} 12. fxe5 {[%clk 0:03:04]}  Ng4 {[%clk 0:02:49]} 13. Bf4 {[%clk 0:03:02]}  Nd7 {[%clk 0:02:48]} 14. Qe2 {[%clk 0:03:01]}  Qc7 {[%clk 0:02:48]} 15. d6 {[%clk 0:02:58]}  exd6 {[%clk 0:02:47]} 16. exd6 {[%clk 0:02:56]}  Qd8 {[%clk 0:02:24]} 17. Nd5 {[%clk 0:02:54]}  Ndf6 {[%clk 0:02:02]} 18. Ne7+ {[%clk 0:02:52]}  Kh8 {[%clk 0:02:03]} 19. h3 {[%clk 0:02:53]}  Nh5 {[%clk 0:02:03]} 20. hxg4 {[%clk 0:02:11]}  Nxf4 {[%clk 0:02:03]} 21. Ng5 {[%clk 0:02:12]}  h6 {[%clk 0:01:49]} 22. Rxh6+ {[%clk 0:01:36]}  Bxh6 {[%clk 0:01:38]} 23. Qe5+ {[%clk 0:01:37]}  f6 {[%clk 0:01:32]} 24. Qxf4 {[%clk 0:01:37]}  Bxg5 {[%clk 0:01:32]} 25. Qh2+ {[%clk 0:00:59]}  Kg7 {[%clk 0:01:26]} 26. Bxg6 {[%clk 0:01:00]}  Rh8 {[%clk 0:01:23]} 27. Qg3 {[%clk 0:00:53]}  Bh4 {[%clk 0:01:22]} 0-1

[Event "January 2 Late 2024"]
[Site "https://www.chess.com"]
[Date "2024.01.02"]
[Round "11"]
[White "Makarian, Rudik"]
[Black "Rastbod, Ali"]
[Result "1-0"]
[Board "27"]
[TimeControl "180+1"]
[WhiteFideId "44105681"]
[BlackFideId "12567477"]
[WhiteElo "3003"]
[BlackElo "2739"]
[WhiteTeam "FID"]
[BlackTeam "IRI"]
[WhiteClock "0:00:11"]
[BlackClock "0:00:00"]

1. e4 {[%clk 0:03:00]}  e6 {[%clk 0:03:00]} 2. d3 {[%clk 0:03:00]}  d5 {[%clk 0:02:59]} 3. Nd2 {[%clk 0:03:01]}  Nf6 {[%clk 0:02:57]} 4. Ngf3 {[%clk 0:03:01]}  Be7 {[%clk 0:02:55]} 5. g3 {[%clk 0:03:01]}  O-O {[%clk 0:02:56]} 6. Bg2 {[%clk 0:03:01]}  a5 {[%clk 0:02:57]} 7. O-O {[%clk 0:03:01]}  a4 {[%clk 0:02:57]} 8. a3 {[%clk 0:03:01]}  Nc6 {[%clk 0:02:56]} 9. e5 {[%clk 0:03:02]}  Nd7 {[%clk 0:02:56]} 10. Re1 {[%clk 0:03:02]}  f6 {[%clk 0:02:53]} 11. exf6 {[%clk 0:03:02]}  Bxf6 {[%clk 0:02:54]} 12. c3 {[%clk 0:02:56]}  e5 {[%clk 0:02:52]} 13. Nf1 {[%clk 0:02:55]}  Nc5 {[%clk 0:02:48]} 14. Ne3 {[%clk 0:02:36]}  Be6 {[%clk 0:02:28]} 15. h4 {[%clk 0:02:22]}  h6 {[%clk 0:02:26]} 16. Nh2 {[%clk 0:02:19]}  e4 {[%clk 0:01:59]} 17. d4 {[%clk 0:02:11]}  Nb3 {[%clk 0:01:55]} 18. Rb1 {[%clk 0:02:09]}  Qd6 {[%clk 0:01:24]} 19. Rf1 {[%clk 0:01:59]}  Rae8 {[%clk 0:01:22]} 20. Neg4 {[%clk 0:01:54]}  Bd8 {[%clk 0:01:21]} 21. Bd2 {[%clk 0:01:40]}  Nca5 {[%clk 0:01:21]} 22. Ne3 {[%clk 0:01:37]}  Nxd2 {[%clk 0:01:13]} 23. Qxd2 {[%clk 0:01:37]}  Nb3 {[%clk 0:01:14]} 24. Qe2 {[%clk 0:01:37]}  c5 {[%clk 0:01:14]} 25. dxc5 {[%clk 0:01:36]}  Qxc5 {[%clk 0:01:15]} 26. Nc2 {[%clk 0:01:31]}  Bb6 {[%clk 0:01:09]} 27. Rbd1 {[%clk 0:01:31]}  Rf6 {[%clk 0:01:04]} 28. Nd4 {[%clk 0:00:55]}  Nxd4 {[%clk 0:00:59]} 29. cxd4 {[%clk 0:00:56]}  Qd6 {[%clk 0:00:56]} 30. Ng4 {[%clk 0:00:54]}  Bxg4 {[%clk 0:00:53]} 31. Qxg4 {[%clk 0:00:55]}  Ref8 {[%clk 0:00:51]} 32. h5 {[%clk 0:00:54]}  Ba7 {[%clk 0:00:44]} 33. Rd2 {[%clk 0:00:51]}  Rf5 {[%clk 0:00:43]} 34. Bh3 {[%clk 0:00:50]}  Kh8 {[%clk 0:00:40]} 35. Qxf5 {[%clk 0:00:44]}  Rxf5 {[%clk 0:00:40]} 36. Bxf5 {[%clk 0:00:45]}  e3 {[%clk 0:00:41]} 37. Rc2 {[%clk 0:00:44]}  g6 {[%clk 0:00:34]} 38. hxg6 {[%clk 0:00:35]}  Bxd4 {[%clk 0:00:34]} 39. Kg2 {[%clk 0:00:32]}  exf2 {[%clk 0:00:31]} 40. Rfc1 {[%clk 0:00:27]}  Kg7 {[%clk 0:00:20]} 41. Rc7+ {[%clk 0:00:25]}  Kf6 {[%clk 0:00:20]} 42. Rf7+ {[%clk 0:00:25]}  Kg5 {[%clk 0:00:20]} 43. Bd3 {[%clk 0:00:18]}  Be3 {[%clk 0:00:14]} 44. g7 {[%clk 0:00:16]}  Qd8 {[%clk 0:00:00]} 45. Rf8 {[%clk 0:00:11]} 1-0

[Event "January 2 Late 2024"]
[Site "https://www.chess.com"]
[Date "2024.01.02"]
[Round "11"]
[White "Bok, Benjamin"]
[Black "Martin Fuentes, Alberto"]
[Result "1-0"]
[Board "32"]
[TimeControl "180+1"]
[WhiteFideId "1017063"]
[BlackFideId "2292289"]
[WhiteElo "2923"]
[BlackElo "2660"]
[WhiteTeam "NED"]
[BlackTeam "ESP"]
[WhiteClock "0:00:15"]
[BlackClock "0:00:16"]

1. d4 {[%clk 0:03:00]}  Nf6 {[%clk 0:02:59]} 2. c4 {[%clk 0:03:01]}  c5 {[%clk 0:02:56]} 3. Nf3 {[%clk 0:03:00]}  cxd4 {[%clk 0:02:55]} 4. Nxd4 {[%clk 0:03:01]}  Nc6 {[%clk 0:02:55]} 5. Nc3 {[%clk 0:03:01]}  d6 {[%clk 0:02:55]} 6. g3 {[%clk 0:03:01]}  Bd7 {[%clk 0:02:56]} 7. Bg2 {[%clk 0:03:02]}  g6 {[%clk 0:02:56]} 8. O-O {[%clk 0:03:01]}  Bg7 {[%clk 0:02:56]} 9. b3 {[%clk 0:02:53]}  O-O {[%clk 0:02:49]} 10. Nc2 {[%clk 0:02:53]}  Qa5 {[%clk 0:02:48]} 11. Bb2 {[%clk 0:02:52]}  Qh5 {[%clk 0:02:48]} 12. e3 {[%clk 0:02:45]}  Bg4 {[%clk 0:02:40]} 13. f3 {[%clk 0:02:37]}  Bh3 {[%clk 0:02:40]} 14. e4 {[%clk 0:02:22]}  Bxg2 {[%clk 0:02:33]} 15. Kxg2 {[%clk 0:02:23]}  Rfe8 {[%clk 0:02:33]} 16. Ne3 {[%clk 0:02:20]}  Qa5 {[%clk 0:02:31]} 17. Qd2 {[%clk 0:02:15]}  Rac8 {[%clk 0:02:30]} 18. Rfd1 {[%clk 0:02:14]}  h5 {[%clk 0:02:26]} 19. Qe2 {[%clk 0:01:55]}  a6 {[%clk 0:02:24]} 20. Ncd5 {[%clk 0:01:42]}  Nxd5 {[%clk 0:02:18]} 21. Nxd5 {[%clk 0:01:43]}  Ne5 {[%clk 0:02:03]} 22. Qd2 {[%clk 0:01:23]}  Qxd2+ {[%clk 0:01:59]} 23. Rxd2 {[%clk 0:01:24]}  Nd7 {[%clk 0:01:49]} 24. Rad1 {[%clk 0:01:18]}  Bxb2 {[%clk 0:01:40]} 25. Rxb2 {[%clk 0:01:19]}  Kf8 {[%clk 0:01:39]} 26. h3 {[%clk 0:01:15]}  Rc6 {[%clk 0:01:37]} 27. f4 {[%clk 0:01:07]}  Nb6 {[%clk 0:01:32]} 28. Ne3 {[%clk 0:01:04]}  Rec8 {[%clk 0:01:29]} 29. g4 {[%clk 0:01:03]}  hxg4 {[%clk 0:01:28]} 30. hxg4 {[%clk 0:01:04]}  Na8 {[%clk 0:01:22]} 31. g5 {[%clk 0:00:57]}  Nc7 {[%clk 0:01:19]} 32. Rh1 {[%clk 0:00:54]}  Ke8 {[%clk 0:01:08]} 33. Kf3 {[%clk 0:00:50]}  b5 {[%clk 0:01:04]} 34. Rh8+ {[%clk 0:00:44]}  Kd7 {[%clk 0:01:04]} 35. Rh7 {[%clk 0:00:45]}  Rf8 {[%clk 0:01:00]} 36. Rd2 {[%clk 0:00:44]}  bxc4 {[%clk 0:00:58]} 37. Nxc4 {[%clk 0:00:44]}  Nb5 {[%clk 0:00:54]} 38. Ne5+ {[%clk 0:00:44]}  Kc7 {[%clk 0:00:51]} 39. Nxc6 {[%clk 0:00:45]}  Kxc6 {[%clk 0:00:52]} 40. Rh1 {[%clk 0:00:39]}  Kd7 {[%clk 0:00:45]} 41. Rc1 {[%clk 0:00:35]}  Rh8 {[%clk 0:00:44]} 42. Kg3 {[%clk 0:00:35]}  Rb8 {[%clk 0:00:38]} 43. Rdc2 {[%clk 0:00:29]}  Nd4 {[%clk 0:00:37]} 44. Rc7+ {[%clk 0:00:29]}  Ke6 {[%clk 0:00:37]} 45. Kg4 {[%clk 0:00:25]}  f5+ {[%clk 0:00:32]} 46. gxf6 {[%clk 0:00:24]}  exf6 {[%clk 0:00:33]} 47. f5+ {[%clk 0:00:19]}  gxf5+ {[%clk 0:00:33]} 48. exf5+ {[%clk 0:00:20]}  Kd5 {[%clk 0:00:32]} 49. Rd1 {[%clk 0:00:19]}  Rg8+ {[%clk 0:00:31]} 50. Kf4 {[%clk 0:00:19]}  Rg5 {[%clk 0:00:21]} 51. Rc4 {[%clk 0:00:15]}  Rxf5+ {[%clk 0:00:20]} 52. Kg4 {[%clk 0:00:15]}  Rg5+ {[%clk 0:00:20]} 53. Kh4 {[%clk 0:00:15]}  Rg2 {[%clk 0:00:16]} 54. Rcxd4+ {[%clk 0:00:15]} 1-0

[Event "January 2 Late 2024"]
[Site "https://www.chess.com"]
[Date "2024.01.02"]
[Round "11"]
[White "Maksimovic, Bojan"]
[Black "Suvorov, Alexander"]
[Result "1-0"]
[Board "34"]
[TimeControl "180+1"]
[WhiteFideId "14408120"]
[BlackFideId "12977063"]
[WhiteElo "2853"]
[BlackElo "2579"]
[WhiteTeam "BIH"]
[BlackTeam "GER"]
[WhiteClock "0:01:23"]
[BlackClock "0:01:47"]

1. a3 {[%clk 0:03:00]}  e5 {[%clk 0:02:56]} 2. h3 {[%clk 0:03:00]}  Nf6 {[%clk 0:02:54]} 3. e3 {[%clk 0:03:00]}  d5 {[%clk 0:02:54]} 4. d4 {[%clk 0:03:00]}  e4 {[%clk 0:02:54]} 5. c4 {[%clk 0:03:00]}  c6 {[%clk 0:02:54]} 6. Bd2 {[%clk 0:03:00]}  Be7 {[%clk 0:02:48]} 7. cxd5 {[%clk 0:03:01]}  Kd7 {[%clk 0:02:49]} 8. dxc6+ {[%clk 0:03:00]}  bxc6 {[%clk 0:02:48]} 9. Bc4 {[%clk 0:02:58]}  Ke8 {[%clk 0:02:43]} 10. Qb3 {[%clk 0:02:58]}  Rf8 {[%clk 0:02:39]} 11. Ne2 {[%clk 0:02:58]}  Nbd7 {[%clk 0:02:40]} 12. Nbc3 {[%clk 0:02:32]}  Nb6 {[%clk 0:02:39]} 13. Na4 {[%clk 0:02:32]}  Nbd5 {[%clk 0:02:29]} 14. Qc2 {[%clk 0:02:31]}  g5 {[%clk 0:02:23]} 15. Rc1 {[%clk 0:02:25]}  Bd7 {[%clk 0:02:20]} 16. Nac3 {[%clk 0:02:25]}  Bf5 {[%clk 0:02:07]} 17. Ng3 {[%clk 0:02:25]}  Nxc3 {[%clk 0:02:02]} 18. Nxf5 {[%clk 0:02:24]}  Ncd5 {[%clk 0:02:02]} 19. Ng7+ {[%clk 0:02:16]}  Kd7 {[%clk 0:02:02]} 20. Bxd5 {[%clk 0:02:17]}  Rc8 {[%clk 0:01:59]} 21. Bxc6+ {[%clk 0:02:11]}  Kd6 {[%clk 0:01:59]} 22. Bb4+ {[%clk 0:01:27]}  Kc7 {[%clk 0:01:58]} 23. Ba5+ {[%clk 0:01:24]}  Kb8 {[%clk 0:01:47]} 24. Qb3+ {[%clk 0:01:23]} 1-0

[Event "January 2 Late 2024"]
[Site "https://www.chess.com"]
[Date "2024.01.02"]
[Round "11"]
[White "Bachmann, Axel"]
[Black "Asish Panda"]
[Result "1-0"]
[Board "35"]
[TimeControl "180+1"]
[WhiteFideId "3700488"]
[BlackFideId "45012458"]
[WhiteElo "2813"]
[BlackElo "2577"]
[WhiteTeam "PAR"]
[BlackTeam "IND"]
[WhiteClock "0:01:04"]
[BlackClock "0:00:02"]

1. Nf3 {[%clk 0:02:59]}  d5 {[%clk 0:02:59]} 2. e3 {[%clk 0:02:58]}  Nf6 {[%clk 0:02:59]} 3. c4 {[%clk 0:02:59]}  e6 {[%clk 0:03:00]} 4. b3 {[%clk 0:02:59]}  Be7 {[%clk 0:03:00]} 5. Bb2 {[%clk 0:02:59]}  O-O {[%clk 0:03:00]} 6. Nc3 {[%clk 0:02:59]}  c5 {[%clk 0:03:00]} 7. cxd5 {[%clk 0:02:59]}  exd5 {[%clk 0:02:57]} 8. d4 {[%clk 0:02:59]}  cxd4 {[%clk 0:02:53]} 9. Nxd4 {[%clk 0:02:58]}  Nc6 {[%clk 0:02:51]} 10. Be2 {[%clk 0:02:59]}  Bc5 {[%clk 0:02:40]} 11. Nxc6 {[%clk 0:02:56]}  bxc6 {[%clk 0:02:39]} 12. O-O {[%clk 0:02:57]}  Re8 {[%clk 0:02:34]} 13. Rc1 {[%clk 0:02:56]}  Bd6 {[%clk 0:02:34]} 14. Na4 {[%clk 0:02:56]}  Ne4 {[%clk 0:02:29]} 15. Rxc6 {[%clk 0:02:52]}  Re6 {[%clk 0:02:20]} 16. g3 {[%clk 0:02:47]}  Bxg3 {[%clk 0:01:51]} 17. Rxe6 {[%clk 0:02:40]}  Bxh2+ {[%clk 0:01:50]} 18. Kxh2 {[%clk 0:02:41]}  Bxe6 {[%clk 0:01:50]} 19. Bf3 {[%clk 0:02:35]}  Qh4+ {[%clk 0:01:48]} 20. Kg1 {[%clk 0:02:35]}  Qg5+ {[%clk 0:01:43]} 21. Bg2 {[%clk 0:02:35]}  Bg4 {[%clk 0:01:35]} 22. f4 {[%clk 0:02:27]}  Qg6 {[%clk 0:01:13]} 23. Qxd5 {[%clk 0:02:25]}  Re8 {[%clk 0:01:13]} 24. Rc1 {[%clk 0:01:34]}  Bf3 {[%clk 0:00:56]} 25. Rc2 {[%clk 0:01:34]}  Qg3 {[%clk 0:00:45]} 26. Qc6 {[%clk 0:01:20]}  Qe1+ {[%clk 0:00:31]} 27. Kh2 {[%clk 0:01:20]}  Qh4+ {[%clk 0:00:21]} 28. Kg1 {[%clk 0:01:20]}  Qe1+ {[%clk 0:00:20]} 29. Bf1 {[%clk 0:01:21]}  Qxe3+ {[%clk 0:00:19]} 30. Kh2 {[%clk 0:01:21]}  Qxf4+ {[%clk 0:00:18]} 31. Kg1 {[%clk 0:01:22]}  Qg3+ {[%clk 0:00:18]} 32. Rg2 {[%clk 0:01:22]}  Qb8 {[%clk 0:00:10]} 33. Rxg7+ {[%clk 0:01:20]}  Kf8 {[%clk 0:00:09]} 34. Qh6 {[%clk 0:01:15]}  Re6 {[%clk 0:00:04]} 35. Rg8+ {[%clk 0:01:13]}  Ke7 {[%clk 0:00:04]} 36. Qxe6+ {[%clk 0:01:10]}  fxe6 {[%clk 0:00:04]} 37. Rxb8 {[%clk 0:01:11]}  Ng5 {[%clk 0:00:02]} 38. Nc5 {[%clk 0:01:08]}  h5 {[%clk 0:00:01]} 39. Bg2 {[%clk 0:01:07]}  Bg4 {[%clk 0:00:02]} 40. Rg8 {[%clk 0:01:06]}  Nf7 {[%clk 0:00:01]} 41. Rg7 {[%clk 0:01:07]}  Kf8 {[%clk 0:00:02]} 42. Kf2 {[%clk 0:01:04]}  Nd6 {[%clk 0:00:02]} 43. Bf3 {[%clk 0:01:05]}  Bf5 {[%clk 0:00:02]} 44. Bxh5 {[%clk 0:01:04]}  Bb1 {[%clk 0:00:02]} 45. Nd7# {[%clk 0:01:04]} 1-0

[Event "January 2 Late 2024"]
[Site "https://www.chess.com"]
[Date "2024.01.02"]
[Round "11"]
[White "Seemann, Jakub"]
[Black "Flynn, Jacob"]
[Result "1-0"]
[Board "37"]
[TimeControl "180+1"]
[WhiteFideId "21874697"]
[BlackFideId "2509393"]
[WhiteElo "2796"]
[BlackElo "2527"]
[WhiteTeam "POL"]
[BlackTeam "IRL"]
[WhiteClock "0:01:34"]
[BlackClock "0:00:01"]

1. d4 {[%clk 0:03:00]}  Nf6 {[%clk 0:02:58]} 2. Bf4 {[%clk 0:03:00]}  d5 {[%clk 0:02:58]} 3. Nf3 {[%clk 0:03:01]}  c5 {[%clk 0:02:58]} 4. e3 {[%clk 0:03:01]}  Nc6 {[%clk 0:02:59]} 5. c3 {[%clk 0:03:02]}  Qb6 {[%clk 0:02:59]} 6. Qb3 {[%clk 0:03:01]}  c4 {[%clk 0:02:59]} 7. Qc2 {[%clk 0:03:01]}  Bf5 {[%clk 0:03:00]} 8. Qc1 {[%clk 0:03:01]}  Nh5 {[%clk 0:02:55]} 9. Nbd2 {[%clk 0:02:58]}  e6 {[%clk 0:02:51]} 10. Be2 {[%clk 0:02:57]}  Nxf4 {[%clk 0:02:44]} 11. exf4 {[%clk 0:02:58]}  Be7 {[%clk 0:02:37]} 12. O-O {[%clk 0:02:57]}  O-O {[%clk 0:02:37]} 13. b3 {[%clk 0:02:57]}  cxb3 {[%clk 0:02:35]} 14. axb3 {[%clk 0:02:58]}  Rac8 {[%clk 0:02:29]} 15. Qb2 {[%clk 0:02:57]}  a5 {[%clk 0:02:16]} 16. Rfc1 {[%clk 0:02:55]}  Rc7 {[%clk 0:02:16]} 17. g3 {[%clk 0:02:55]}  Rfc8 {[%clk 0:02:15]} 18. Ne1 {[%clk 0:02:55]}  h6 {[%clk 0:02:04]} 19. Bd3 {[%clk 0:02:55]}  Bxd3 {[%clk 0:02:03]} 20. Nxd3 {[%clk 0:02:56]}  Bf8 {[%clk 0:01:54]} 21. Nf3 {[%clk 0:02:55]}  Qb5 {[%clk 0:01:50]} 22. Nfe5 {[%clk 0:02:50]}  Nxe5 {[%clk 0:01:50]} 23. Nxe5 {[%clk 0:02:51]}  g6 {[%clk 0:01:42]} 24. Ng4 {[%clk 0:02:50]}  Bg7 {[%clk 0:01:38]} 25. Ne3 {[%clk 0:02:50]}  h5 {[%clk 0:01:37]} 26. h4 {[%clk 0:02:49]}  b6 {[%clk 0:01:36]} 27. Rc2 {[%clk 0:02:46]}  Rc6 {[%clk 0:01:30]} 28. Rac1 {[%clk 0:02:43]}  Qa6 {[%clk 0:01:25]} 29. Qa3 {[%clk 0:02:42]}  Bf8 {[%clk 0:01:23]} 30. Qa2 {[%clk 0:02:40]}  Qb7 {[%clk 0:01:23]} 31. c4 {[%clk 0:02:38]}  dxc4 {[%clk 0:01:14]} 32. bxc4 {[%clk 0:02:39]}  Bg7 {[%clk 0:01:01]} 33. d5 {[%clk 0:02:39]}  exd5 {[%clk 0:01:02]} 34. cxd5 {[%clk 0:02:34]}  Rxc2 {[%clk 0:01:02]} 35. Rxc2 {[%clk 0:02:35]}  Rd8 {[%clk 0:00:55]} 36. Rc6 {[%clk 0:02:31]}  Bd4 {[%clk 0:00:53]} 37. Qc4 {[%clk 0:02:27]}  Bxe3 {[%clk 0:00:49]} 38. fxe3 {[%clk 0:02:27]}  b5 {[%clk 0:00:36]} 39. Qc5 {[%clk 0:02:26]}  b4 {[%clk 0:00:33]} 40. Qxa5 {[%clk 0:02:13]}  Ra8 {[%clk 0:00:28]} 41. Qb6 {[%clk 0:02:00]}  Ra1+ {[%clk 0:00:07]} 42. Kg2 {[%clk 0:01:59]}  Ra2+ {[%clk 0:00:08]} 43. Kf3 {[%clk 0:01:59]}  Qa8 {[%clk 0:00:06]} 44. Qxb4 {[%clk 0:01:46]}  Ra1 {[%clk 0:00:05]} 45. Qc3 {[%clk 0:01:39]}  Rf1+ {[%clk 0:00:05]} 46. Kg2 {[%clk 0:01:37]}  Qa2+ {[%clk 0:00:01]} 47. Kxf1 {[%clk 0:01:36]}  Qb1+ {[%clk 0:00:01]} 48. Kf2 {[%clk 0:01:34]}  Qa1 {[%clk 0:00:01]} 1-0

[Event "January 2 Late 2024"]
[Site "https://www.chess.com"]
[Date "2024.01.02"]
[Round "11"]
[White "Banerjee, Supratit"]
[Black "Tristan, Leonardo"]
[Result "1-0"]
[Board "39"]
[TimeControl "180+1"]
[WhiteFideId "2410079"]
[BlackFideId "113816"]
[WhiteElo "2565"]
[BlackElo "2743"]
[WhiteTeam "SCO"]
[BlackTeam "ARG"]
[WhiteClock "0:00:24"]
[BlackClock "0:00:00"]

1. e4 {[%clk 0:03:00]}  d5 {[%clk 0:03:00]} 2. exd5 {[%clk 0:03:00]}  Qxd5 {[%clk 0:03:01]} 3. d4 {[%clk 0:03:00]}  Nc6 {[%clk 0:03:01]} 4. Nf3 {[%clk 0:03:01]}  Bg4 {[%clk 0:03:01]} 5. Be2 {[%clk 0:03:01]}  O-O-O {[%clk 0:03:01]} 6. c3 {[%clk 0:03:00]}  e5 {[%clk 0:02:59]} 7. h3 {[%clk 0:02:58]}  Bh5 {[%clk 0:02:48]} 8. O-O {[%clk 0:02:58]}  exd4 {[%clk 0:02:47]} 9. Nxd4 {[%clk 0:02:58]}  Bxe2 {[%clk 0:02:42]} 10. Qxe2 {[%clk 0:02:57]}  Nxd4 {[%clk 0:02:41]} 11. cxd4 {[%clk 0:02:57]}  Qxd4 {[%clk 0:02:36]} 12. Nc3 {[%clk 0:02:56]}  Qd3 {[%clk 0:02:32]} 13. Qg4+ {[%clk 0:02:54]}  f5 {[%clk 0:02:32]} 14. Qa4 {[%clk 0:02:52]}  Qa6 {[%clk 0:02:04]} 15. Qxa6 {[%clk 0:02:47]}  bxa6 {[%clk 0:02:04]} 16. Be3 {[%clk 0:02:47]}  Kb7 {[%clk 0:02:03]} 17. Rad1 {[%clk 0:02:46]}  Rxd1 {[%clk 0:01:46]} 18. Rxd1 {[%clk 0:02:45]}  Bd6 {[%clk 0:01:47]} 19. Rd5 {[%clk 0:02:37]}  Ne7 {[%clk 0:01:46]} 20. Rd1 {[%clk 0:02:36]}  Rd8 {[%clk 0:01:21]} 21. Kf1 {[%clk 0:02:35]}  f4 {[%clk 0:01:20]} 22. Bxf4 {[%clk 0:02:33]}  Kc6 {[%clk 0:01:00]} 23. Be3 {[%clk 0:02:30]}  Ra8 {[%clk 0:00:54]} 24. b3 {[%clk 0:02:28]}  Nf5 {[%clk 0:00:55]} 25. Bd2 {[%clk 0:02:24]}  Rf8 {[%clk 0:00:55]} 26. Ne4 {[%clk 0:02:17]}  Ba3 {[%clk 0:00:54]} 27. g4 {[%clk 0:02:12]}  Nh4 {[%clk 0:00:42]} 28. Be3 {[%clk 0:02:12]}  h6 {[%clk 0:00:33]} 29. Ng3 {[%clk 0:02:02]}  Bd6 {[%clk 0:00:30]} 30. Ne4 {[%clk 0:01:55]}  Be5 {[%clk 0:00:26]} 31. Bxa7 {[%clk 0:01:45]}  Rf3 {[%clk 0:00:26]} 32. Be3 {[%clk 0:01:36]}  Rxh3 {[%clk 0:00:26]} 33. Ke2 {[%clk 0:01:33]}  Ng2 {[%clk 0:00:23]} 34. Rc1+ {[%clk 0:01:31]}  Kd5 {[%clk 0:00:16]} 35. Rc5+ {[%clk 0:01:18]}  Ke6 {[%clk 0:00:15]} 36. Nd2 {[%clk 0:01:09]}  Nxe3 {[%clk 0:00:12]} 37. fxe3 {[%clk 0:01:09]}  Rh2+ {[%clk 0:00:12]} 38. Kd3 {[%clk 0:01:09]}  Rg2 {[%clk 0:00:12]} 39. Rc6+ {[%clk 0:01:08]}  Kd7 {[%clk 0:00:10]} 40. Rxa6 {[%clk 0:01:07]}  Rxg4 {[%clk 0:00:10]} 41. Nc4 {[%clk 0:01:07]}  Bg3 {[%clk 0:00:10]} 42. Ra4 {[%clk 0:01:04]}  h5 {[%clk 0:00:09]} 43. Rb4 {[%clk 0:01:04]}  c5 {[%clk 0:00:08]} 44. Rb5 {[%clk 0:01:02]}  Kc6 {[%clk 0:00:08]} 45. Rb6+ {[%clk 0:01:02]}  Kc7 {[%clk 0:00:09]} 46. Rb5 {[%clk 0:01:01]}  h4 {[%clk 0:00:08]} 47. Rxc5+ {[%clk 0:01:01]}  Kb7 {[%clk 0:00:08]} 48. Rh5 {[%clk 0:01:00]}  Rg6 {[%clk 0:00:06]} 49. a4 {[%clk 0:00:59]}  Ka6 {[%clk 0:00:04]} 50. b4 {[%clk 0:00:58]}  Rf6 {[%clk 0:00:02]} 51. b5+ {[%clk 0:00:57]}  Ka7 {[%clk 0:00:02]} 52. a5 {[%clk 0:00:57]}  Rf7 {[%clk 0:00:03]} 53. Rh8 {[%clk 0:00:52]}  g5 {[%clk 0:00:02]} 54. b6+ {[%clk 0:00:52]}  Kb7 {[%clk 0:00:02]} 55. Rh5 {[%clk 0:00:42]}  g4 {[%clk 0:00:02]} 56. Ke2 {[%clk 0:00:37]}  h3 {[%clk 0:00:02]} 57. a6+ {[%clk 0:00:23]}  Kxa6 {[%clk 0:00:02]} 58. Ra5+ {[%clk 0:00:23]}  Kb7 {[%clk 0:00:02]} 59. Ra7+ {[%clk 0:00:23]}  Kc6 {[%clk 0:00:02]} 60. Rxf7 {[%clk 0:00:24]}  Bb8 {[%clk 0:00:03]} 61. Rh7 {[%clk 0:00:23]}  Kc5 {[%clk 0:00:03]} 62. Nd2 {[%clk 0:00:19]}  h2 {[%clk 0:00:03]} 63. Ne4+ {[%clk 0:00:19]}  Kxb6 {[%clk 0:00:03]} 64. Kf2 {[%clk 0:00:19]}  Kc6 {[%clk 0:00:03]} 65. Ng3 {[%clk 0:00:19]}  Kd5 {[%clk 0:00:03]} 66. Rxh2 {[%clk 0:00:19]}  Kc4 {[%clk 0:00:03]} 67. Rh4 {[%clk 0:00:19]}  Kd3 {[%clk 0:00:03]} 68. Rxg4 {[%clk 0:00:20]}  Be5 {[%clk 0:00:04]} 69. Rg5 {[%clk 0:00:19]}  Bf6 {[%clk 0:00:03]} 70. Rd5+ {[%clk 0:00:19]}  Kc4 {[%clk 0:00:04]} 71. Rd1 {[%clk 0:00:20]}  Kc3 {[%clk 0:00:04]} 72. Ne4+ {[%clk 0:00:20]}  Kc2 {[%clk 0:00:05]} 73. Nxf6 {[%clk 0:00:21]}  Kxd1 {[%clk 0:00:05]} 74. e4 {[%clk 0:00:22]}  Kd2 {[%clk 0:00:06]} 75. e5 {[%clk 0:00:23]}  Kd3 {[%clk 0:00:07]} 76. e6 {[%clk 0:00:24]}  Kd4 {[%clk 0:00:07]} 77. e7 {[%clk 0:00:24]}  Kc5 {[%clk 0:00:08]} 78. e8=Q {[%clk 0:00:25]}  Kb6 {[%clk 0:00:09]} 79. Qc8 {[%clk 0:00:25]}  Ka7 {[%clk 0:00:09]} 80. Qc6 {[%clk 0:00:23]}  Kb8 {[%clk 0:00:10]} 81. Qd7 {[%clk 0:00:23]}  Ka8 {[%clk 0:00:10]} 82. Nd5 {[%clk 0:00:24]}  Kb8 {[%clk 0:00:00]} 83. Qc7+ {[%clk 0:00:24]} 1-0